bitfinex/quotes_SOLUSD_20220306
["timestamp","ask_amount","ask_price","bid_price","bid_amount"]
[1646567516014,55.82075892,86.935,86.88,17.2687]
[1646567516417,5.753,86.934,86.88,17.2687]
[1646567516615,55.82075892,86.935,86.88,17.2687]
[1646567516815,55.82075892,86.935,86.873,5.753]
[1646567517335,116.1,86.934,86.873,5.753]
[1646567517536,55.82075892,86.935,86.873,5.753]
[1646567518136,116.1,86.934,86.873,5.753]
[1646567518335,116.1,86.934,86.794,5.17059126]
[1646567518336,1.56984864,86.928,86.794,5.17059126]
[1646567518536,1.56984864,86.917,86.807,22.5383]
[1646567518737,1.56984864,86.914,86.814,21.52480022]
[1646567518938,1.56984864,86.912,86.832,59.05855616]
[1646567519136,116.1,86.907,86.832,59.05855616]
[1646567519336,116.1,86.905,86.832,59.05855616]
[1646567519539,5.755,86.904,86.832,59.05855616]
[1646567521241,5.755,86.904,86.832,80.58335638]
[1646567521543,7.32484864,86.904,86.84,17.2771]
[1646567521938,5.755,86.904,86.84,17.2771]
[1646567522238,22.7726,86.906,86.84,17.2771]
[1646567522438,5.755,86.905,86.84,17.2771]
[1646567524044,22.7726,86.906,86.84,17.2771]
[1646567524243,1.56984864,86.904,86.84,17.2771]
[1646567525345,1.56984864,86.903,86.84,17.2771]
[1646567525846,1.56984864,86.902,86.84,17.2771]
[1646567526048,7.32484864,86.901,86.84,17.2771]
[1646567526247,1.56984864,86.9,86.84,17.2771]
[1646567526850,1.56984864,86.897,86.84,17.2771]
[1646567527051,22.7726,86.906,86.841,21.52480022]
[1646567527253,22.7726,86.906,86.86,17.2678]
[1646567527454,1.56984864,86.901,86.842,2.83613526]
[1646567527654,1.56984864,86.901,86.825,44.25518211]
[1646567527854,17.2851,86.88,86.825,44.25518211]
[1646567528055,1.56984864,86.892,86.825,22.5049]
[1646567528252,1.56984864,86.886,86.825,22.5049]
[1646567528453,1.56984864,86.885,86.82,40.0598]
[1646567529053,1.56984864,86.884,86.82,40.0598]
[1646567529953,1.56984864,86.882,86.82,17.2808]
[1646567530156,1.56984864,86.881,86.812,21.52480022]
[1646567530353,1.56984864,86.866,86.796,2.83613526]
[1646567530556,1.56984864,86.861,86.786,2.83613526]
[1646567530955,63.77906999,86.86,86.787,61.58156997]
[1646567531155,23.2156,86.859,86.787,61.58156997]
[1646567531556,23.2156,86.859,86.788,21.75028211]
[1646567531766,23.2156,86.859,86.788,43.27508233]
[1646567532061,23.2156,86.859,86.789,24.36093548]
[1646567532257,23.2156,86.859,86.79,17.287]
[1646567532464,23.2156,86.859,86.79,41.87341737]
[1646567532661,23.2156,86.859,86.79,20.12313526]
[1646567532861,23.2156,86.859,86.791,24.58641737]
[1646567533263,23.2156,86.859,86.792,24.58641737]
[1646567533665,23.2156,86.859,86.793,24.58641737]
[1646567534064,23.2156,86.859,86.794,24.58641737]
[1646567534264,23.2156,86.859,86.81,17.2831]
[1646567535264,23.2156,86.859,86.8,17.285]
[1646567539569,5.758,86.858,86.8,17.285]
[1646567542277,23.2156,86.859,86.8,17.285]
[1646567542480,5.758,86.858,86.8,17.285]
[1646567543698,5.758,86.858,86.801,5.758]
[1646567545899,5.758,86.858,86.8,17.285]
[1646567546099,23.2156,86.859,86.801,5.758]
[1646567548005,24.78544864,86.859,86.801,5.758]
[1646567548204,23.2156,86.859,86.801,5.758]
[1646567548604,24.78544864,86.859,86.801,5.758]
[1646567548805,23.2156,86.859,86.801,5.758]
[1646567549104,24.78544864,86.859,86.801,5.758]
[1646567549909,1.56984864,86.858,86.8,17.285]
[1646567550708,24.78544864,86.859,86.8,17.285]
[1646567550909,1.56984864,86.858,86.8,17.285]
[1646567551908,5.758,86.857,86.8,17.285]
[1646567552512,7.32784864,86.857,86.8,17.285]
[1646567552910,1.56984864,86.855,86.8,17.285]
[1646567554609,1.56984864,86.856,86.8,17.285]
[1646567554810,5.758,86.855,86.8,17.285]
[1646567555311,1.56984864,86.85,86.8,17.285]
[1646567556010,1.56984864,86.857,86.801,5.758]
[1646567556212,1.56984864,86.857,86.81,17.2804]
[1646567556414,1.56984864,86.857,86.811,5.758]
[1646567556613,1.56984864,86.858,86.811,5.758]
[1646567557617,1.56984864,86.857,86.811,5.758]
[1646567558116,1.56984864,86.858,86.811,5.758]
[1646567559117,1.56984864,86.852,86.811,5.758]
[1646567560419,1.56984864,86.846,86.801,5.758]
[1646567560618,1.56984864,86.846,86.8,17.285]
[1646567561018,1.56984864,86.844,86.8,17.285]
[1646567561219,1.56984864,86.844,86.788,5.758]
[1646567561420,1.56984864,86.842,86.788,5.758]
[1646567561618,1.56984864,86.84,86.788,5.758]
[1646567562023,1.56984864,86.839,86.788,5.758]
[1646567562920,1.56984864,86.84,86.788,5.758]
[1646567563121,1.56984864,86.84,86.79,17.2868]
[1646567563323,1.56984864,86.84,86.791,5.759]
[1646567563524,1.56984864,86.84,86.79,17.2868]
[1646567564124,1.56984864,86.839,86.79,17.2868]
[1646567564325,1.56984864,86.84,86.79,17.2868]
[1646567564523,23.2156,86.859,86.79,17.2868]
[1646567564524,1.56984864,86.841,86.791,21.52480022]
[1646567564724,1.56984864,86.843,86.792,5.759]
[1646567564929,1.56984864,86.846,86.8,17.283]
[1646567565125,1.56984864,86.85,86.801,5.758]
[1646567565327,1.56984864,86.851,86.793,21.75028211]
[1646567565523,1.56984864,86.851,86.801,21.75028211]
[1646567565925,1.56984864,86.851,86.81,17.2821]
[1646567566123,1.56984864,86.853,86.81,17.2821]
[1646567568125,1.56984864,86.853,86.811,5.758]
[1646567568524,1.56984864,86.854,86.811,5.758]
[1646567569726,1.56984864,86.851,86.811,5.758]
[1646567569928,1.56984864,86.845,86.795,24.7373]
[1646567570127,1.56984864,86.842,86.795,24.7373]
[1646567570729,1.56984864,86.843,86.795,24.7373]
[1646567571129,1.56984864,86.843,86.8,17.285]
[1646567571728,1.56984864,86.842,86.8,17.285]
[1646567572231,1.56984864,86.843,86.8,17.285]
[1646567572438,1.56984864,86.842,86.8,17.285]
[1646567572634,1.56984864,86.842,86.768,2.83613526]
[1646567572835,116.1,86.856,86.771,22.955]
[1646567572836,1.56984864,86.831,86.771,22.955]
[1646567573033,1.56984864,86.83,86.771,22.955]
[1646567573234,1.56984864,86.833,86.771,22.955]
[1646567573639,1.56984864,86.832,86.78,17.2887]
[1646567574233,1.56984864,86.833,86.78,17.2887]
[1646567574433,1.56984864,86.834,86.78,17.2887]
[1646567574636,1.56984864,86.833,86.78,17.2887]
[1646567574835,1.56984864,86.834,86.78,17.2887]
[1646567575036,1.56984864,86.833,86.78,17.2887]
[1646567575238,1.56984864,86.832,86.78,17.2887]
[1646567575438,1.56984864,86.834,86.78,17.2887]
[1646567575636,1.56984864,86.833,86.78,17.2887]
[1646567576240,1.56984864,86.834,86.78,17.2887]
[1646567576437,1.56984864,86.833,86.78,17.2887]
[1646567576639,1.56984864,86.836,86.78,17.2887]
[1646567577038,1.56984864,86.837,86.78,17.2887]
[1646567577454,1.56984864,86.841,86.78,17.2887]
[1646567577655,1.56984864,86.842,86.78,17.2887]
[1646567578656,1.56984864,86.843,86.78,17.2887]
[1646567578855,1.56984864,86.844,86.781,2.83613526]
[1646567579054,1.56984864,86.846,86.8,17.2851]
[1646567579255,1.56984864,86.845,86.8,33.07616319]
[1646567579455,1.56984864,86.846,86.8,33.07616319]
[1646567580258,117.66984864,86.847,86.8,33.07616319]
[1646567580457,1.56984864,86.846,86.8,33.07616319]
[1646567580858,117.66984864,86.847,86.8,33.07616319]
[1646567581260,116.1,86.847,86.8,33.07616319]
[1646567581661,117.66984864,86.847,86.8,33.07616319]
[1646567582264,117.66984864,86.847,86.8,17.2851]
[1646567583265,117.66984864,86.847,86.801,55.21959389]
[1646567583562,1.56984864,86.846,86.801,55.21959389]
[1646567583764,1.56984864,86.846,86.8,17.2851]
[1646567584163,117.66984864,86.847,86.8,17.2851]
[1646567584763,117.66984864,86.847,86.801,60.82610404]
[1646567585263,116.1,86.847,86.801,60.82610404]
[1646567585966,117.66984864,86.847,86.801,60.82610404]
[1646567586165,117.66984864,86.847,86.8,17.2851]
[1646567586564,1.56984864,86.846,86.8,17.2851]
[1646567586766,1.56984864,86.846,86.782,23.7364]
[1646567587166,1.56984864,86.845,86.783,63.40071123]
[1646567587565,1.56984864,86.845,86.784,2.83613526]
[1646567588165,1.56984864,86.845,86.79,17.2867]
[1646567588568,1.56984864,86.844,86.79,17.2867]
[1646567589367,1.56984864,86.843,86.79,17.2867]
[1646567590569,1.56984864,86.844,86.79,17.2867]
[1646567591370,1.56984864,86.845,86.79,17.2867]
[1646567593274,1.56984864,86.846,86.79,17.2867]
[1646567593673,1.56984864,86.845,86.79,17.2867]
[1646567594273,1.56984864,86.845,86.79,34.2757]
[1646567594471,1.56984864,86.846,86.79,34.2757]
[1646567594672,1.56984864,86.845,86.79,34.2757]
[1646567594872,1.56984864,86.846,86.79,34.2757]
[1646567595072,1.56984864,86.845,86.79,34.2757]
[1646567595673,1.56984864,86.844,86.79,34.2757]
[1646567595973,1.56984864,86.845,86.79,34.2757]
[1646567597172,1.56984864,86.843,86.79,34.2757]
[1646567597873,1.56984864,86.844,86.79,34.2757]
[1646567599979,1.56984864,86.843,86.79,34.2757]
[1646567600179,1.56984864,86.842,86.79,34.2757]
[1646567600382,1.56984864,86.843,86.79,34.2757]
[1646567601483,1.56984864,86.842,86.79,34.2757]
[1646567601680,1.56984864,86.842,86.791,2.83613526]
[1646567602681,1.56984864,86.842,86.8,17.2852]
[1646567603082,1.56984864,86.843,86.791,2.83613526]
[1646567603604,1.56984864,86.842,86.791,2.83613526]
[1646567603781,1.56984864,86.842,86.8,17.2849]
[1646567605583,1.56984864,86.847,86.8,17.2849]
[1646567605784,1.56984864,86.856,86.81,17.2779]
[1646567606083,1.56984864,86.857,86.811,2.83613526]
[1646567606283,24.1835,86.868,86.811,25.22760214]
[1646567606284,1.56984864,86.858,86.811,25.22760214]
[1646567606486,1.56984864,86.854,86.811,25.22760214]
[1646567606683,1.56984864,86.854,86.812,20.77538683]
[1646567606888,1.56984864,86.854,86.82,17.2806]
[1646567607488,1.56984864,86.853,86.82,17.2806]
[1646567607685,47.85282123,86.859,86.82,17.2806]
[1646567607886,46.28297259,86.859,86.82,17.2806]
[1646567608085,47.85282123,86.859,86.82,17.2806]
[1646567608286,46.28297259,86.859,86.82,17.2806]
[1646567613894,1.56984864,86.864,86.82,17.2806]
[1646567614093,1.56984864,86.868,86.83,17.2737]
[1646567614293,1.56984864,86.882,86.83,17.2737]
[1646567614497,1.56984864,86.891,86.831,48.56905441]
[1646567614694,1.56984864,86.903,86.831,60.92513726]
[1646567614895,1.56984864,86.902,86.832,39.06387042]
[1646567615094,1.56984864,86.902,86.832,61.4553373]
[1646567615295,1.56984864,86.902,86.841,54.64740432]
[1646567615694,1.56984864,86.902,86.842,60.0599555]
[1646567615894,1.56984864,86.9,86.842,62.89609076]
[1646567616095,1.56984864,86.9,86.843,15.19221811]
[1646567616295,1.56984864,86.898,86.843,15.19221811]
[1646567616497,1.56984864,86.896,86.843,15.19221811]
[1646567616694,47.28199546,86.905,86.831,26.82073526]
[1646567616695,1.56984864,86.893,86.831,26.82073526]
[1646567617097,1.56984864,86.892,86.831,26.82073526]
[1646567617399,1.56984864,86.887,86.831,23.9846]
[1646567617595,1.56984864,86.886,86.831,23.9846]
[1646567617794,1.56984864,86.885,86.831,23.9846]
[1646567617997,1.56984864,86.885,86.832,2.83613526]
[1646567618195,116.1,86.9,86.832,2.83613526]
[1646567618196,1.56984864,86.886,86.832,2.83613526]
[1646567618495,1.56984864,86.888,86.832,2.83613526]
[1646567618713,1.56984864,86.89,86.832,2.83613526]
[1646567619813,1.56984864,86.889,86.832,2.83613526]
[1646567620014,1.56984864,86.889,86.84,17.2778]
[1646567620415,1.56984864,86.889,86.841,2.83613526]
[1646567621416,1.56984864,86.888,86.841,2.83613526]
[1646567622218,1.56984864,86.889,86.841,2.83613526]
[1646567622417,5.756,86.901,86.841,2.83613526]
[1646567622418,1.56984864,86.888,86.841,2.83613526]
[1646567622616,1.56984864,86.889,86.841,2.83613526]
[1646567624118,1.56984864,86.889,86.85,17.2757]
[1646567624318,1.56984864,86.893,86.85,17.2757]
[1646567624518,1.56984864,86.894,86.85,17.2757]
[1646567624719,116.1,86.902,86.85,17.2757]
[1646567624720,1.56984864,86.893,86.85,17.2757]
[1646567625321,1.56984864,86.894,86.85,17.2757]
[1646567625519,1.56984864,86.891,86.85,17.2757]
[1646567628422,1.56984864,86.89,86.85,17.2757]
[1646567629027,1.56984864,86.889,86.841,2.83613526]
[1646567629929,1.56984864,86.888,86.841,2.83613526]
[1646567630128,1.56984864,86.889,86.841,2.83613526]
[1646567631330,1.56984864,86.887,86.841,2.83613526]
[1646567633533,1.56984864,86.886,86.841,2.83613526]
[1646567633934,1.56984864,86.887,86.841,2.83613526]
[1646567634434,1.56984864,86.886,86.85,17.2758]
[1646567635034,1.56984864,86.887,86.85,17.2758]
[1646567635232,1.56984864,86.887,86.86,17.2736]
[1646567635635,1.56984864,86.898,86.861,2.83613526]
[1646567635834,116.1,86.902,86.861,2.83613526]
[1646567635835,1.56984864,86.899,86.861,2.83613526]
[1646567636435,1.56984864,86.901,86.87,17.2715]
[1646567636635,1.56984864,86.909,86.87,17.2715]
[1646567636936,119.22004538,86.933,86.871,2.83613526]
[1646567636937,1.56984864,86.911,86.871,2.83613526]
[1646567637343,1.56984864,86.911,86.872,17.4595997]
[1646567637537,1.56984864,86.914,86.88,17.2693]
[1646567637737,1.56984864,86.915,86.88,17.2693]
[1646567637938,1.56984864,86.918,86.88,17.2693]
[1646567638137,1.56984864,86.918,86.881,2.83613526]
[1646567639339,1.56984864,86.923,86.881,2.83613526]
[1646567639939,1.56984864,86.926,86.89,17.2675]
[1646567640538,1.56984864,86.925,86.89,17.2675]
[1646567640739,1.56984864,86.926,86.881,2.83613526]
[1646567640940,1.56984864,86.925,86.881,2.83613526]
[1646567641138,1.56984864,86.92,86.881,2.83613526]
[1646567641639,1.56984864,86.919,86.881,2.83613526]
[1646567642141,1.56984864,86.922,86.881,2.83613526]
[1646567642340,1.56984864,86.921,86.881,2.83613526]
[1646567642543,1.56984864,86.919,86.881,2.83613526]
[1646567642741,1.56984864,86.921,86.881,2.83613526]
[1646567643341,1.56984864,86.924,86.881,66.24297111]
[1646567645445,1.56984864,86.922,86.881,66.24297111]
[1646567645645,1.56984864,86.923,86.881,66.24297111]
[1646567646045,116.1,86.933,86.881,66.24297111]
[1646567646046,1.56984864,86.924,86.881,66.24297111]
[1646567646445,1.56984864,86.926,86.882,2.83613526]
[1646567646646,1.56984864,86.929,86.89,17.2674]
[1646567647047,1.56984864,86.931,86.89,2.83613526]
[1646567647251,1.56984864,86.931,86.881,63.40683585]
[1646567647452,1.56984864,86.932,86.881,63.40683585]
[1646567647649,1.56984864,86.93,86.881,63.40683585]
[1646567647847,1.56984864,86.929,86.881,63.40683585]
[1646567648246,1.56984864,86.93,86.881,63.40683585]
[1646567649147,1.56984864,86.929,86.881,63.40683585]
[1646567649350,1.56984864,86.93,86.881,63.40683585]
[1646567649549,1.56984864,86.929,86.881,63.40683585]
[1646567649950,1.56984864,86.928,86.88,20.10593526]
[1646567650649,1.56984864,86.929,86.88,20.10593526]
[1646567651450,1.56984864,86.928,86.88,20.10593526]
[1646567653652,1.56984864,86.928,86.881,2.83613526]
[1646567654053,1.56984864,86.929,86.881,2.83613526]
[1646567654254,1.56984864,86.927,86.881,2.83613526]
[1646567654653,1.56984864,86.928,86.881,2.83613526]
[1646567654854,1.56984864,86.927,86.881,2.83613526]
[1646567655460,1.56984864,86.927,86.873,24.9182]
[1646567655661,1.56984864,86.925,86.873,24.9182]
[1646567655861,1.56984864,86.923,86.873,24.9182]
[1646567656166,1.56984864,86.92,86.874,2.83613526]
[1646567656361,1.56984864,86.918,86.861,2.83613526]
[1646567656760,116.1,86.91,86.861,2.83613526]
[1646567656961,63.9492185,86.911,86.851,2.83613526]
[1646567656962,116.1,86.908,86.851,2.83613526]
[1646567657161,1.56984864,86.907,86.851,2.83613526]
[1646567657361,1.56984864,86.903,86.851,2.83613526]
[1646567657560,1.56984864,86.902,86.847,25.4649391]
[1646567657768,1.56984864,86.901,86.847,25.4649391]
[1646567657962,1.56984864,86.9,86.847,25.4649391]
[1646567658161,1.56984864,86.9,86.847,50.10453932]
[1646567658362,1.56984864,86.9,86.85,17.2757]
[1646567658562,23.8151,86.909,86.85,17.2757]
[1646567658763,1.56984864,86.923,86.851,66.59675743]
[1646567658962,1.56984864,86.93,86.851,66.59675743]
[1646567659164,1.56984864,86.933,86.852,67.33949076]
[1646567659461,47.7154,86.959,86.852,67.33949076]
[1646567659462,1.56984864,86.932,86.87,17.2634]
[1646567659664,1.56984864,86.938,86.87,17.2634]
[1646567659875,1.56984864,86.938,86.871,90.20539076]
[1646567660282,1.56984864,86.935,86.872,67.33949076]
[1646567660482,1.56984864,86.935,86.873,19.87984213]
[1646567660678,46.96719254,86.944,86.873,87.21933289]
[1646567660679,1.56984864,86.936,86.873,87.21933289]
[1646567660878,1.56984864,86.944,86.89,17.266]
[1646567661078,1.56984864,86.949,86.89,17.266]
[1646567661278,1.56984864,86.949,86.891,67.33949076]
[1646567661478,1.56984864,86.95,86.891,67.33949076]
[1646567661677,1.56984864,86.954,86.892,67.33949076]
[1646567662078,1.56984864,86.955,86.893,67.33949076]
[1646567662579,1.56984864,86.957,86.9,69.96571376]
[1646567663080,1.56984864,86.956,86.901,28.22713548]
[1646567663479,1.56984864,86.952,86.902,2.83613526]
[1646567663680,1.56984864,86.953,86.902,28.22713548]
[1646567664083,1.56984864,86.953,86.903,28.22713548]
[1646567664280,1.56984864,86.953,86.91,17.2627]
[1646567664681,1.56984864,86.956,86.911,2.83613526]
[1646567664881,1.56984864,86.957,86.911,2.83613526]
[1646567665081,1.56984864,86.956,86.911,2.83613526]
[1646567665283,1.56984864,86.956,86.92,17.2614]
[1646567665482,1.56984864,86.961,86.92,17.2614]
[1646567665681,46.57520723,86.962,86.921,2.83613526]
[1646567666281,1.56984864,86.962,86.921,2.83613526]
[1646567666481,1.56984864,86.962,86.93,17.2589]
[1646567666681,1.56984864,86.963,86.93,17.2589]
[1646567666882,1.56984864,86.964,86.93,17.2589]
[1646567667685,64.66797137,86.967,86.93,17.2589]
[1646567668683,1.56984864,86.966,86.93,17.2589]
[1646567668882,64.66797137,86.967,86.93,17.2589]
[1646567669283,63.09812273,86.967,86.93,17.2589]
[1646567669484,64.66797137,86.967,86.93,17.2589]
[1646567670184,1.56984864,86.967,86.93,17.2589]
[1646567670685,1.56984864,86.969,86.931,2.83613526]
[1646567670884,1.56984864,86.969,86.94,17.2573]
[1646567671087,1.56984864,86.97,86.94,17.2573]
[1646567671289,1.56984864,86.971,86.94,17.2573]
[1646567671685,1.56984864,86.97,86.94,17.2573]
[1646567672489,1.56984864,86.97,86.931,2.83613526]
[1646567672691,1.56984864,86.969,86.931,2.83613526]
[1646567672892,0.1,86.975,86.918,5.75]
[1646567672893,1.56984864,86.968,86.918,5.75]
[1646567673092,1.56984864,86.961,86.914,2.83613526]
[1646567673291,1.56984864,86.955,86.903,5.751]
[1646567673490,1.56984864,86.953,86.903,5.751]
[1646567673689,1.56984864,86.953,86.903,5.251]
[1646567673889,1.56984864,86.953,86.901,5.751]
[1646567674290,1.56984864,86.953,86.904,25.39100022]
[1646567674490,1.56984864,86.952,86.904,25.39100022]
[1646567674889,1.56984864,86.944,86.904,25.39100022]
[1646567675090,116.1,86.942,86.904,25.39100022]
[1646567675689,61.42827162,86.941,86.904,25.39100022]
[1646567676590,62.99812026,86.941,86.904,25.39100022]
[1646567677192,1.56984864,86.94,86.904,25.39100022]
[1646567678497,61.42827162,86.941,86.904,25.39100022]
[1646567679697,62.99812026,86.941,86.904,25.39100022]
[1646567680097,61.42827162,86.941,86.904,25.39100022]
[1646567682499,1.56984864,86.942,86.91,17.2637]
[1646567682700,1.56984864,86.945,86.91,17.2637]
[1646567682899,116.1,86.962,86.91,17.2637]
[1646567682900,1.56984864,86.95,86.91,17.2637]
[1646567683302,1.56984864,86.949,86.91,17.2637]
[1646567683500,66.10511008,86.949,86.91,17.2637]
[1646567685306,66.10511008,86.949,86.911,25.39100022]
[1646567685706,1.56984864,86.948,86.911,25.39100022]
[1646567687106,1.56984864,86.945,86.911,25.39100022]
[1646567687307,1.56984864,86.945,86.911,50.85593932]
[1646567687706,1.56984864,86.945,86.912,25.39100022]
[1646567688712,1.56984864,86.94,86.912,25.39100022]
[1646567688908,1.56984864,86.939,86.912,25.39100022]
[1646567689110,1.56984864,86.94,86.912,25.39100022]
[1646567690509,1.56984864,86.939,86.912,25.39100022]
[1646567690711,1.56984864,86.938,86.912,25.39100022]
[1646567690913,1.56984864,86.935,86.9,17.3856]
[1646567691113,1.56984864,86.936,86.901,25.39100022]
[1646567691511,1.56984864,86.935,86.901,25.39100022]
[1646567691710,144.8653,86.948,86.901,25.39100022]
[1646567691711,1.56984864,86.936,86.901,25.39100022]
[1646567692110,1.56984864,86.936,86.901,50.85593932]
[1646567692312,1.56984864,86.937,86.901,50.85593932]
[1646567692511,1.56984864,86.938,86.902,25.39100022]
[1646567692711,1.56984864,86.937,86.902,25.39100022]
[1646567692912,1.56984864,86.937,86.902,50.85593932]
[1646567693114,1.56984864,86.937,86.91,17.2639]
[1646567693313,1.56984864,86.938,86.91,17.2639]
[1646567693512,1.56984864,86.939,86.911,25.39100022]
[1646567693915,1.56984864,86.945,86.912,2.83613526]
[1646567694114,1.56984864,86.956,86.92,17.2614]
[1646567694314,1.56984864,86.96,86.921,5.751]
[1646567694515,1.56984864,86.961,86.921,33.97813548]
[1646567694714,1.56984864,86.962,86.922,2.83613526]
[1646567694914,1.56984864,86.962,86.923,5.75]
[1646567695115,1.56984864,86.962,86.93,17.2568]
[1646567695516,1.56984864,86.963,86.93,17.2568]
[1646567695817,1.56984864,86.964,86.93,17.2568]
[1646567696620,1.56984864,86.963,86.93,17.2568]
[1646567696819,1.56984864,86.96,86.93,17.2568]
[1646567697019,1.56984864,86.961,86.93,17.2568]
[1646567697418,1.06984864,86.96,86.93,17.2568]
[1646567697619,52.11087805,86.967,86.93,17.2568]
[1646567698619,116.1,86.966,86.93,17.2568]
[1646567698822,52.11087805,86.967,86.93,17.2568]
[1646567700223,52.11087805,86.967,86.925,16.8846]
[1646567700825,116.1,86.966,86.925,16.8846]
[1646567701442,52.11087805,86.967,86.925,16.8846]
[1646567701939,116.1,86.966,86.925,16.8846]
[1646567702140,52.11087805,86.967,86.925,16.8846]
[1646567704943,51.61087805,86.967,86.925,16.8846]
[1646567705144,51.61087805,86.967,86.93,17.2593]
[1646567707649,22.6026,86.973,86.93,17.2593]
[1646567708250,138.7026,86.973,86.93,17.2593]
[1646567708951,138.7026,86.973,86.924,19.71153526]
[1646567709152,138.7026,86.973,86.915,5.75]
[1646567709357,116.1,86.971,86.915,5.75]
[1646567709557,116.1,86.969,86.915,5.75]
[1646567709752,5.75,86.968,86.915,5.75]
[1646567709957,116.1,86.967,86.915,5.75]
[1646567710161,5.751,86.966,86.9,17.3856]
[1646567710355,116.1,86.965,86.9,17.3856]
[1646567710553,116.1,86.963,86.9,17.3856]
[1646567710958,116.1,86.961,86.9,17.3856]
[1646567711155,5.751,86.96,86.9,17.3856]
[1646567711558,116.1,86.958,86.9,17.3856]
[1646567711857,116.1,86.954,86.9,17.3856]
[1646567712059,116.1,86.946,86.9,17.3856]
[1646567712255,116.1,86.943,86.9,17.3856]
[1646567712456,5.752,86.942,86.9,17.3856]
[1646567715160,55.44676682,86.944,86.9,17.3856]
[1646567715760,55.44676682,86.944,86.901,2.83613526]
[1646567715962,55.44676682,86.944,86.91,17.2637]
[1646567717564,55.44676682,86.944,86.911,2.83613526]
[1646567719064,121.851,86.961,86.911,2.83613526]
[1646567719264,5.751,86.961,86.92,17.2615]
[1646567719665,5.751,86.961,86.921,2.83613526]
[1646567720166,45.76917225,86.96,86.921,2.83613526]
[1646567720369,5.751,86.959,86.921,2.83613526]
[1646567720767,45.76917225,86.96,86.921,2.83613526]
[1646567723074,5.751,86.974,86.922,23.1440127]
[1646567723274,0.1,86.975,86.922,23.1440127]
[1646567723475,0.1,86.975,86.923,26.30774103]
[1646567723776,0.1,86.975,86.93,17.2596]
[1646567724275,0.1,86.975,86.931,2.83613526]
[1646567727063,0.1,86.975,86.932,2.83613526]
[1646567728377,0.1,86.975,86.92,11.90132991]
[1646567728578,0.1,86.975,86.915,2.83613526]
[1646567728779,121.85,86.974,86.902,35.55272991]
[1646567729178,121.85,86.974,86.902,58.69674261]
[1646567729381,116.1,86.972,86.902,58.69674261]
[1646567729680,5.751,86.971,86.902,58.69674261]
[1646567729881,116.1,86.966,86.902,23.1440127]
[1646567730080,5.751,86.965,86.902,23.1440127]
[1646567730680,116.1,86.963,86.902,23.1440127]
[1646567730880,5.751,86.962,86.902,23.1440127]
[1646567731079,17.2687,86.96,86.902,23.1440127]
[1646567731279,121.851,86.959,86.902,23.1440127]
[1646567731480,116.1,86.957,86.902,23.1440127]
[1646567731680,5.751,86.956,86.902,23.1440127]
[1646567733081,116.1,86.957,86.902,23.1440127]
[1646567733684,116.1,86.957,86.903,2.83613526]
[1646567734083,5.751,86.956,86.903,2.83613526]
[1646567734285,5.751,86.956,86.903,25.98014796]
[1646567734685,5.751,86.956,86.904,2.83613526]
[1646567735782,49.7726189,86.958,86.904,2.83613526]
[1646567735783,49.7726189,86.958,86.91,17.2635]
[1646567736186,116.1,86.957,86.911,2.83613526]
[1646567737491,4.093,86.956,86.911,2.83613526]
[1646567741791,4.093,86.956,86.911,25.98014796]
[1646567742392,4.093,86.956,86.912,2.83613526]
[1646567750400,116.1,86.957,86.912,2.83613526]
[1646567751602,116.1,86.957,86.901,2.83613526]
[1646567753401,5.751,86.956,86.901,2.83613526]
[1646567753622,5.751,86.956,86.901,25.98014796]
[1646567754207,3.12004538,86.968,86.91,17.263]
[1646567754405,3.12004538,86.976,86.91,17.263]
[1646567754707,116.1,86.995,86.911,62.11226372]
[1646567754906,6.2901459,86.994,86.911,62.11226372]
[1646567755109,6.2901459,86.994,86.912,62.11226372]
[1646567755308,46.61406256,86.993,86.913,24.13160922]
[1646567755506,46.61406256,86.993,86.93,17.2551]
[1646567755707,6.2901459,86.992,86.931,48.95504667]
[1646567755907,6.2901459,86.992,86.931,69.89772604]
[1646567756107,116.1,86.991,86.932,2.83613526]
[1646567756315,116.1,86.991,86.932,41.16958435]
[1646567756515,116.1,86.989,86.932,41.16958435]
[1646567756714,5.75,86.988,86.933,2.83613526]
[1646567757816,5.75,86.99,86.933,2.83613526]
[1646567758216,116.1,86.988,86.933,2.83613526]
[1646567758416,5.75,86.987,86.933,2.83613526]